fUSD/lending_fUSD_20260509
["ID","MTS","AMOUNT","RATE_DAILY","PERIOD"]
[421900779,1778313032000,-184.62,0.00014299,2]
[421900783,1778313032000,-160.0,0.00014519,2]
[421900785,1778313032000,-25995.44194317,0.00014599,2]
[421900784,1778313032000,-1200.0,0.00014598,2]
[421900786,1778313032000,-611.40275571,0.00014599,2]
[421900791,1778313032000,-550.00639416,0.00014599,2]
[421900789,1778313032000,-2412.11522595,0.00014599,2]
[421900788,1778313032000,-1206.96082785,0.00014599,2]
[421900787,1778313032000,-1950.17403298,0.00014599,2]
[421900782,1778313032000,-161.84,0.0001439,2]
[421900808,1778313038000,-918.60513351,0.00014599,2]
[421900809,1778313038000,-571.18927001,0.00014599,2]
[421900810,1778313038000,-503.47737862,0.00014599,2]
[421900812,1778313038000,-552.93113016,0.00014599,2]
[421900811,1778313038000,-4405.66696543,0.00014599,2]
[421900814,1778313038000,-2917.5460326,0.00014599,2]
[421900817,1778313038000,-27101.81642507,0.00014599,2]
[421900815,1778313038000,-421.86047143,0.00014599,2]
[421900816,1778313038000,-4992.61308658,0.00014599,2]
[421900813,1778313038000,-2337.20328361,0.00014599,2]
[421900818,1778313038000,-380.52932165,0.00014599,2]
[421900840,1778313040000,-2999.31116892,0.00014599,2]
[421900842,1778313040000,-42293.39808523,0.00014599,2]
[421900841,1778313040000,-287.08482133,0.00014599,2]
[421900838,1778313040000,-591.07158026,0.00014599,2]
[421900839,1778313040000,-644.38,0.00014599,2]
[421900837,1778313040000,-1762.7394988,0.00014599,2]
[421900843,1778313041000,-2510.73356464,0.00014599,2]
[421900845,1778313041000,-152516.97604634,0.00014599,2]
[421900854,1778313043000,-662.9809019,0.00014599,2]
[421900853,1778313043000,-2422.86433199,0.00014599,2]
[421900855,1778313043000,-2184.40697061,0.00014599,2]
[421900858,1778313043000,-652.85,0.00014599,2]
[421900860,1778313043000,-10584.35291694,0.00014599,2]
[421900859,1778313043000,-9337.82413837,0.00014599,2]
[421900857,1778313043000,-30557.12032922,0.00014599,2]
[421900856,1778313043000,-648.92043422,0.00014599,2]
[421900892,1778313046000,-492.98298303,0.00014599,2]
[421900894,1778313046000,-588.55137855,0.00014599,2]
[421900864,1778313046000,-7019.88673891,0.00014599,2]
[421900863,1778313046000,-13572.43352589,0.00014599,2]
[421900862,1778313046000,-364.95483316,0.00014599,2]
[421900861,1778313046000,-511.63701206,0.00014599,2]
[421900901,1778313047000,-1779.2946,0.00014599,2]
[421901801,1778313148000,253.71,7.139e-05,2]
[421901802,1778313213000,520.41,0.00030137,120]
[421901803,1778313304000,-4513.882,0.00014138,2]
[421901805,1778313315000,-639.280307,0.00014138,2]
[421901807,1778313374000,-311963.49829083,0.0004195,30]
[421901817,1778313374000,-1000000.0,0.0004195,30]
[421901816,1778313374000,-1000000.0,0.0004195,30]
[421901814,1778313374000,-1000000.0,0.0004195,30]
[421901815,1778313374000,-1000000.0,0.0004195,30]
[421901813,1778313374000,-1000000.0,0.0004195,30]
[421901812,1778313374000,-1000000.0,0.0004195,30]
[421901811,1778313374000,-1000000.0,0.0004195,30]
[421901810,1778313374000,-1000000.0,0.0004195,30]
[421901809,1778313374000,-1000000.0,0.0004195,30]
[421901808,1778313374000,-1000000.0,0.0004195,30]
[421901819,1778313374000,-1000000.0,0.0004195,30]
[421901818,1778313374000,-1000000.0,0.0004195,30]
[421901821,1778313375000,-1000000.0,0.0004195,30]
[421901820,1778313375000,-1000000.0,0.0004195,30]
[421901822,1778313375000,-1000000.0,0.0004195,30]
[421901826,1778313375000,-688036.50170917,0.0004195,30]
[421901824,1778313375000,-1000000.0,0.0004195,30]
[421901823,1778313375000,-1000000.0,0.0004195,30]
[421901825,1778313375000,-1000000.0,0.0004195,30]
[421901831,1778313619000,257.53,0.00011407,2]
[421901832,1778313627000,880.17,0.00027573,120]
[421901838,1778313716000,-81.48599259,0.00014209,2]
[421901852,1778313817000,-368.18499259,0.00014258,2]
[421901853,1778313817000,-479.39901482,0.00014398,2]
[421901851,1778313817000,-511.98500741,0.00014258,2]
[421901849,1778313817000,-163.159,0.00014209,2]
[421901850,1778313817000,-172.44,0.00014239,2]
[421901848,1778313817000,-847.58400741,0.00014209,2]
[421901858,1778313818000,-524.56702964,0.00014399,2]
[421901854,1778313818000,-720.60098518,0.00014398,2]
[421901857,1778313818000,-300.0,0.00014398,2]
[421901856,1778313818000,-23.01697777,0.00014398,2]
[421901855,1778313818000,-126.98302223,0.00014398,2]
[421901862,1778313819000,-531.95400741,0.00014399,2]
[421901860,1778313819000,-165.63,0.00014278,2]
[421901861,1778313819000,-150.0,0.00014398,2]
[421901859,1778313819000,-847.58400741,0.00014399,2]
[421901864,1778313820000,-847.58400741,0.00014399,2]
[421901863,1778313820000,-847.58400741,0.00014399,2]
[421901865,1778313852000,223.842954,0.0002254,120]
[421901867,1778313921000,572.42,0.00014046,2]
[421901866,1778313921000,1172.29,0.00014046,2]
[421901868,1778313922000,1040.67,0.00014046,2]
[421901873,1778313955000,232.0,8.1e-05,2]
[421901874,1778313958000,150.0,0.00014037,2]
[421901875,1778314016000,159.7,0.00014049,2]
[421901876,1778314035000,328.22,0.00013992,2]
[421901878,1778314140000,654.52,0.0002709,120]
[421901877,1778314140000,150.0,0.000301,120]
[421901879,1778314140000,654.52,0.0002709,120]
[421901881,1778314141000,392.71,0.00025585,120]
[421901880,1778314141000,392.71,0.00025585,120]
[421901884,1778314168000,500.0,0.0001405,2]
[421901883,1778314168000,500.0,0.0001405,2]
[421901882,1778314168000,500.0,0.0001405,2]
[421901886,1778314170000,611.522,0.00013776,2]
[421901888,1778314179000,2000.0,0.0003013,120]
[421901887,1778314179000,2000.0,0.0003013,120]
[421901890,1778314200000,223.64,0.0002709,120]
[421901889,1778314200000,150.0,0.000301,120]
[421901891,1778314225000,152.0,0.00013173,2]
[421901892,1778314226000,152.0,0.00013173,2]
[421901923,1778314231000,-500.0,0.00014298,2]
[421901928,1778314231000,-500.0,0.00014298,2]
[421901926,1778314231000,-500.0,0.00014298,2]
[421901924,1778314231000,-500.0,0.00014298,2]
[421901925,1778314231000,-500.0,0.00014298,2]
[421901920,1778314231000,-500.0,0.00014298,2]
[421901929,1778314231000,-500.0,0.00014298,2]
[421901916,1778314231000,-192.96747303,0.00014289,2]
[421901917,1778314231000,-1200.0,0.00014297,2]
[421901921,1778314231000,-500.0,0.00014298,2]
[421901919,1778314231000,-500.0,0.00014298,2]
[421901922,1778314231000,-250.33995483,0.00014298,2]
[421901918,1778314231000,-210.66506833,0.00014297,2]
[421901927,1778314231000,-500.0,0.00014298,2]
[421901944,1778314231000,-277.35774015,0.00014298,2]
[421901932,1778314231000,-307.57098304,0.00014298,2]
[421901930,1778314231000,-500.0,0.00014298,2]
[421901940,1778314231000,-422.45943099,0.00014298,2]
[421901942,1778314231000,-415.87079703,0.00014298,2]
[421901939,1778314231000,-77.54056901,0.00014298,2]
[421901941,1778314231000,-51.74962385,0.00014298,2]
[421901943,1778314231000,-32.54924725,0.00014298,2]
[421901945,1778314231000,-542.2066273,0.00014298,2]
[421901937,1778314231000,-250.0,0.00014298,2]
[421901936,1778314231000,-77.54056901,0.00014298,2]
[421901935,1778314231000,-186.46164737,0.00014298,2]
[421901931,1778314231000,-500.0,0.00014298,2]
[421901934,1778314231000,-129.39345817,0.00014298,2]
[421901933,1778314231000,-192.42901696,0.00014298,2]
[421901938,1778314231000,-172.45943099,0.00014298,2]
[421901963,1778314237000,-500.0,0.00014298,2]
[421901961,1778314237000,-500.0,0.00014298,2]
[421901962,1778314237000,-160.74861469,0.00014298,2]
[421901964,1778314237000,-500.0,0.00014298,2]
[421901978,1778314238000,-76528.33061815,0.00014299,2]
[421901965,1778314238000,-500.0,0.00014298,2]
[421901967,1778314238000,-500.0,0.00014298,2]
[421901966,1778314238000,-500.0,0.00014298,2]
[421901969,1778314238000,-500.0,0.00014298,2]
[421901971,1778314238000,-500.0,0.00014298,2]
[421901974,1778314238000,-500.0,0.00014298,2]
[421901979,1778314238000,-793.66649967,0.00014299,2]
[421901976,1778314238000,-150.0,0.00014298,2]
[421901977,1778314238000,-150.0,0.00014298,2]
[421901972,1778314238000,-191.26181504,0.00014298,2]
[421901973,1778314238000,-500.0,0.00014298,2]
[421901982,1778314238000,-380.52932165,0.00014299,2]
[421901970,1778314238000,-500.0,0.00014298,2]
[421901968,1778314238000,-500.0,0.00014298,2]
[421901980,1778314238000,-329.16,0.00014299,2]
[421901981,1778314238000,-27101.81642507,0.00014299,2]
[421901975,1778314238000,-3264.38519003,0.00014298,2]
[421901999,1778314240000,-52656.03506347,0.00014299,2]
[421902015,1778314242000,-75849.36084964,0.00014299,2]
[421902014,1778314242000,-900965.80892845,0.00014299,2]
[421902031,1778314243000,-282.34269276,0.00014498,2]
[421902027,1778314243000,-164.07,0.0001444,2]
[421902025,1778314243000,-235.67,0.00014406,2]
[421902043,1778314243000,-16379.1346543,0.00014596,2]
[421902035,1778314243000,-625.28608851,0.00014498,2]
[421902044,1778314243000,-1069.4913364,0.00014596,2]
[421902040,1778314243000,-5000.0,0.00014499,2]
[421902022,1778314243000,-24856.197,0.00014399,2]
[421902034,1778314243000,-500.39781509,0.00014498,2]
[421902032,1778314243000,-229.64087812,0.00014498,2]
[421902023,1778314243000,-2500.0,0.00014399,2]
[421902028,1778314243000,-500.0,0.00014498,2]
[421902030,1778314243000,-474.27971115,0.00014498,2]
[421902026,1778314243000,-283.79,0.0001444,2]
[421902024,1778314243000,-208.0536425,0.00014406,2]
[421902029,1778314243000,-500.0,0.00014498,2]
[421902020,1778314243000,-2000.0,0.00014399,2]
[421902019,1778314243000,-3678.0062,0.00014399,2]
[421902018,1778314243000,-24158.72774072,0.00014399,2]
[421902017,1778314243000,-3153.94378665,0.00014299,2]
[421902016,1778314243000,-365395.2922939,0.00014299,2]
[421902039,1778314243000,-517551.5368,0.00014499,2]
[421902021,1778314243000,-471.379,0.00014399,2]
[421902038,1778314243000,-235.89718488,0.00014499,2]
[421902051,1778314243000,-500.0,0.00014698,2]
[421902037,1778314243000,-500.0,0.00014498,2]
[421902064,1778314243000,-27127.10282763,0.00015,2]
[421902065,1778314243000,-1090.87610233,0.00015,2]
[421902062,1778314243000,-501.10595738,0.00014973,2]
[421902063,1778314243000,-383.00791248,0.0001499,2]
[421902060,1778314243000,-500.0,0.00014973,2]
[421902058,1778314243000,-1058.92188487,0.000149,2]
[421902061,1778314243000,-500.0,0.00014973,2]
[421902059,1778314243000,-500.25010277,0.00014973,2]
[421902033,1778314243000,-500.0,0.00014498,2]
[421902053,1778314243000,-500.0,0.00014798,2]
[421902054,1778314243000,-500.0,0.00014798,2]
[421902050,1778314243000,-1872.07836152,0.00014599,2]
[421902055,1778314243000,-500.0,0.00014798,2]
[421902036,1778314243000,-500.0,0.00014498,2]
[421902052,1778314243000,-235.67,0.00014766,2]
[421902042,1778314243000,-165.7905639,0.00014526,2]
[421902046,1778314243000,-500.0,0.00014598,2]
[421902056,1778314243000,-500.0,0.00014798,2]
[421902041,1778314243000,-628.84697034,0.00014499,2]
[421902045,1778314243000,-500.0,0.00014598,2]
[421902049,1778314243000,-310.25754514,0.00014599,2]
[421902048,1778314243000,-184.75390111,0.00014599,2]
[421902047,1778314243000,-640.39212556,0.00014598,2]
[421902057,1778314243000,-214.73073128,0.00014833,2]
[421902068,1778314244000,250.0,0.00014,2]
[421902069,1778314245000,-15282.8541825,0.00015,2]
[421902070,1778314245000,-14678.37508463,0.00015,2]
[421902071,1778314245000,-907.04155819,0.00015,2]
[421902074,1778314245000,-2233.2002,0.00015,2]
[421902073,1778314245000,-9430.35816085,0.00015,2]
[421902076,1778314245000,-235.67,0.00015126,2]
[421902072,1778314245000,-6960.55412542,0.00015,2]
[421902077,1778314245000,-329.0,0.00015205,2]
[421902082,1778314245000,-500.0,0.00015727,2]
[421902081,1778314245000,-250.0,0.00015727,2]
[421902075,1778314245000,-87466.83151172,0.00015,2]
[421902080,1778314245000,-1005.74239376,0.00015521,2]
[421902078,1778314245000,-255.0,0.00015427,2]
[421902079,1778314245000,-235.67,0.00015486,2]
[421902111,1778314246000,-569.3,0.00017364,2]
[421902113,1778314246000,-315.0,0.00017771,5]
[421902112,1778314246000,-1172.29,0.00017558,2]
[421902114,1778314246000,-406.0,0.00017771,5]
[421902116,1778314246000,-150.0,0.00017834,2]
[421902109,1778314246000,-925.0,0.00017312,2]
[421902097,1778314246000,-1269.0,0.00016953,2]
[421902115,1778314246000,-3806.59181732,0.00017794,2]
[421902108,1778314246000,-150.151,0.00017312,2]
[421902106,1778314246000,-150.127,0.00017312,2]
[421902107,1778314246000,-150.0,0.00017312,2]
[421902105,1778314246000,-150.0,0.00017312,2]
[421902101,1778314246000,-929.0,0.00017252,2]
[421902100,1778314246000,-6047.0,0.00017252,2]
[421902110,1778314246000,-571.57,0.00017364,2]
[421902096,1778314246000,-1352.0,0.00016953,2]
[421902095,1778314246000,-624.0,0.00016953,2]
[421902083,1778314246000,-1680.0,0.00015727,2]
[421902085,1778314246000,-1172.29,0.00015802,2]
[421902088,1778314246000,-276.0,0.00016,2]
[421902086,1778314246000,-150.0,0.00015834,2]
[421902089,1778314246000,-300.0,0.00016,2]
[421902084,1778314246000,-300.0,0.00015728,2]
[421902118,1778314246000,-164.07,0.0001805,2]
[421902087,1778314246000,-235.67,0.00015846,2]
[421902102,1778314246000,-412.0,0.00017299,2]
[421902092,1778314246000,-375.0,0.00016583,5]
[421902091,1778314246000,-786.6,0.00016438,2]
[421902093,1778314246000,-433.0,0.00016643,2]
[421902103,1778314246000,-174.093,0.00017312,2]
[421902094,1778314246000,-150.0,0.00016834,2]
[421902090,1778314246000,-3806.59181732,0.00016046,2]
[421902128,1778314246000,-150.0,0.00018834,2]
[421902098,1778314246000,-1222.0,0.00017252,2]
[421902122,1778314246000,-569.23,0.00018186,2]
[421902134,1778314246000,-1172.29,0.00019313,2]
[421902154,1778314246000,-3415.43224146,0.0002,2]
[421902143,1778314246000,-150.0,0.00019834,2]
[421902142,1778314246000,-1000.0,0.000198,2]
[421902145,1778314246000,-624.0,0.00019953,2]
[421902153,1778314246000,-277.0,0.0002,2]
[421902144,1778314246000,-1043.0,0.000199,2]
[421902151,1778314246000,-155.0,0.0002,2]
[421902150,1778314246000,-833.0,0.0002,2]
[421902147,1778314246000,-1218.778,0.00019953,2]
[421902146,1778314246000,-1352.0,0.00019953,2]
[421902149,1778314246000,-150.0,0.0002,2]
[421902148,1778314246000,-158.0,0.0002,2]
[421902152,1778314246000,-154.0,0.0002,2]
[421902117,1778314246000,-184.62,0.00017873,2]
[421902137,1778314246000,-836.04,0.00019339,2]
[421902141,1778314246000,-1601.0,0.0001957,2]
[421902099,1778314246000,-3627.0,0.00017252,2]
[421902136,1778314246000,-150.99,0.00019339,2]
[421902121,1778314246000,-49065.876277,0.0001814,2]
[421902119,1778314246000,-55989.04314235,0.0001814,2]
[421902124,1778314246000,-2112.02,0.000182,2]
[421902123,1778314246000,-569.23,0.0001819,2]
[421902125,1778314246000,-786.6,0.0001841,2]
[421902127,1778314246000,-880.17,0.00018697,2]
[421902126,1778314246000,-194.36223699,0.00018533,2]
[421902129,1778314246000,-164.0,0.00018948,2]
[421902131,1778314246000,-1582.0,0.00019096,2]
[421902132,1778314246000,-300.09796737,0.00019134,2]
[421902133,1778314246000,-360.11756084,0.00019134,2]
[421902130,1778314246000,-628.84697031,0.00019059,2]
[421902140,1778314246000,-3806.59181732,0.00019542,2]
[421902135,1778314246000,-13871.08,0.00019339,2]
[421902138,1778314246000,-2112.02,0.000195,2]
[421902120,1778314246000,-505.0,0.0001814,2]
[421902155,1778314261000,150.0,0.000151,120]
[421902156,1778314264000,152.0,0.00013177,2]
[421902157,1778314283000,187.3534534,0.00030136,120]
[421902158,1778314291000,1828.0,0.00030137,120]
[421902159,1778314291000,2030.0,0.00030137,120]
[421902160,1778314319000,475.80593,0.0002352,120]
[421902161,1778314321000,420.868782,0.0002352,120]
[421902162,1778314338000,-2670.849483,0.00014226,2]
[421902166,1778314385000,1503.588693,0.0002254,120]
[421902165,1778314385000,-300.0,0.00014297,2]
[421902168,1778314386000,-150.0,0.00014298,2]
[421902167,1778314386000,-150.0,0.00014297,2]
[421902171,1778314387000,-250.0,0.00014298,2]
[421902170,1778314387000,-50.0,0.00014298,2]
[421902169,1778314387000,-300.0,0.00014298,2]
[421902173,1778314408000,1266.491,0.00013915,2]
[421902172,1778314408000,163.16066631,0.00013915,2]
[421902174,1778314418000,501.59,0.0003,120]
[421902175,1778314427000,152.0,0.00013175,2]
[421902176,1778314447000,150.0,0.000151,120]
[421902177,1778314463000,2799.68672901,0.00014099,2]
[421902178,1778314465000,1088.00234,0.0002254,120]
[421902179,1778314479000,351.891512,0.0002254,120]
[421902180,1778314487000,502.59,0.0003,120]
[421902181,1778314502000,152.0,0.00013178,2]
[421902182,1778314503000,176.03,0.000285,120]
[421902183,1778314509000,865.0,0.00024811,120]
[421902184,1778314511000,865.0,0.00026051,120]
[421902185,1778314512000,865.0,0.00027354,120]
[421902186,1778314513000,865.0,0.00028721,120]
[421902187,1778314519000,2493.920848,0.0002254,120]
[421902188,1778314560000,211.687113,0.0002254,120]
[421902189,1778314597000,715.872432,0.0002254,120]
[421902190,1778314617000,168.794058,0.0002254,120]
[421902191,1778314622000,813.42,0.00026316,120]
[421902192,1778314629000,209.773862,0.0002254,120]
[421902193,1778314634000,255.04,0.000151,120]
[421902195,1778314646000,152.0,0.00013723,2]
[421902196,1778314690000,425.459049,0.0002205,120]
[421902197,1778314706000,3640.2920476,0.00014109,2]
[421902198,1778314751000,1404.17069758,0.00014108,2]
[421902200,1778314806000,519.0,0.00025291,120]
[421902201,1778314807000,519.0,0.00026556,120]
[421902202,1778314809000,519.0,0.00027884,120]
[421902203,1778314810000,519.0,0.00029278,120]
[421902205,1778314886000,900.0,0.00030136,120]
[421902209,1778315108000,260.0,0.00026594,120]
[421902210,1778315109000,260.0,0.00027924,120]
[421902211,1778315110000,260.0,0.0002932,120]
[421902212,1778315214000,644.97,0.00030137,120]
[421902213,1778315409000,173.0,0.00026778,120]
[421902214,1778315411000,173.0,0.00028117,120]
[421902215,1778315412000,173.0,0.00029523,120]
[421902234,1778315431000,-1375.90402006,0.00014099,2]
[421902229,1778315431000,-150.0,0.00013924,2]
[421902233,1778315431000,-5000.0,0.00014099,2]
[421902232,1778315431000,-1500.0,0.00014098,2]
[421902231,1778315431000,-1208.2,0.00013972,2]
[421902230,1778315431000,-240.91150034,0.00013924,2]
[421902227,1778315431000,-1200.0,0.00013923,2]
[421902228,1778315431000,-150.0,0.00013924,2]
[421902223,1778315431000,-150.0,0.0001336,2]
[421902226,1778315431000,-1208.2,0.00013631,2]
[421902224,1778315431000,-150.0,0.00013493,2]
[421902219,1778315431000,-250.0,0.00013236,2]
[421902222,1778315431000,-440.08,0.00013247,2]
[421902220,1778315431000,-150.0,0.00013242,2]
[421902235,1778315431000,-1124.09597994,0.00014099,2]
[421902221,1778315431000,-164.07,0.00013245,2]
[421902218,1778315431000,-4537.43,0.00013229,2]
[421902225,1778315431000,-182.49,0.00013594,2]
[421902237,1778315431000,-653.94378202,0.00014108,2]
[421902236,1778315431000,-150.0,0.00014107,2]
[421902241,1778315431000,-91.37752843,0.00014108,2]
[421902252,1778315431000,-500.0,0.00014198,2]
[421902254,1778315431000,-500.0,0.00014198,2]
[421902256,1778315431000,-500.0,0.00014198,2]
[421902255,1778315431000,-500.0,0.00014198,2]
[421902253,1778315431000,-500.0,0.00014198,2]
[421902238,1778315431000,-1142.04228259,0.00014108,2]
[421902250,1778315431000,-297.4728497,0.00014198,2]
[421902249,1778315431000,-202.5271503,0.00014198,2]
[421902248,1778315431000,-381.45861452,0.00014198,2]
[421902251,1778315431000,-392.96870473,0.00014198,2]
[421902246,1778315431000,-172.1096658,0.00014197,2]
[421902243,1778315431000,-2105.92265322,0.00014108,2]
[421902244,1778315431000,-160.0,0.00014123,2]
[421902242,1778315431000,-987.95536,0.00014108,2]
[421902245,1778315431000,-192.96747304,0.00014189,2]
[421902240,1778315431000,-3869.21208681,0.00014108,2]
[421902239,1778315431000,-2064.86547979,0.00014108,2]
[421902247,1778315431000,-118.54138548,0.00014198,2]
[421902259,1778315432000,-500.0,0.00014198,2]
[421902258,1778315432000,-500.0,0.00014198,2]
[421902257,1778315432000,-500.0,0.00014198,2]
[421902260,1778315432000,-500.0,0.00014198,2]
[421902265,1778315432000,-500.0,0.00014198,2]
[421902262,1778315432000,-500.0,0.00014198,2]
[421902263,1778315432000,-500.0,0.00014198,2]
[421902264,1778315432000,-500.0,0.00014198,2]
[421902267,1778315432000,-500.0,0.00014198,2]
[421902271,1778315432000,-500.0,0.00014198,2]
[421902272,1778315432000,-500.0,0.00014198,2]
[421902266,1778315432000,-500.0,0.00014198,2]
[421902270,1778315432000,-500.0,0.00014198,2]
[421902268,1778315432000,-500.0,0.00014198,2]
[421902269,1778315432000,-500.0,0.00014198,2]
[421902273,1778315432000,-421.31767905,0.00014198,2]
[421902261,1778315432000,-500.0,0.00014198,2]
[421902303,1778315437000,-152.0,0.00013214,2]
[421902305,1778315437000,-500.0,0.00014198,2]
[421902304,1778315437000,-78.68232095,0.00014198,2]
[421902346,1778315438000,-500.0,0.00014198,2]
[421902353,1778315438000,-500.0,0.00014198,2]
[421902359,1778315438000,-500.0,0.00014198,2]
[421902355,1778315438000,-500.0,0.00014198,2]
[421902361,1778315438000,-603.92522619,0.00014198,2]
[421902350,1778315438000,-500.0,0.00014198,2]
[421902357,1778315438000,-500.0,0.00014198,2]
[421902348,1778315438000,-500.0,0.00014198,2]
[421902330,1778315438000,-500.0,0.00014198,2]
[421902344,1778315438000,-500.0,0.00014198,2]
[421902342,1778315438000,-500.0,0.00014198,2]
[421902340,1778315438000,-500.0,0.00014198,2]
[421902364,1778315438000,-500.0,0.00014198,2]
[421902327,1778315438000,-500.0,0.00014198,2]
[421902326,1778315438000,-500.0,0.00014198,2]
[421902324,1778315438000,-500.0,0.00014198,2]
[421902322,1778315438000,-500.0,0.00014198,2]
[421902351,1778315438000,-500.0,0.00014198,2]
[421902366,1778315438000,-500.0,0.00014198,2]
[421902380,1778315438000,-500.0,0.00014198,2]
[421902368,1778315438000,-500.0,0.00014198,2]
[421902411,1778315438000,-380.52932165,0.00014199,2]
[421902409,1778315438000,-27101.81642507,0.00014199,2]
[421902395,1778315438000,-500.0,0.00014198,2]
[421902401,1778315438000,-150.0,0.00014198,2]
[421902397,1778315438000,-500.0,0.00014198,2]
[421902403,1778315438000,-500.0,0.00014198,2]
[421902405,1778315438000,-240188.72393235,0.00014199,2]
[421902393,1778315438000,-500.0,0.00014198,2]
[421902376,1778315438000,-1013.193,0.00014198,2]
[421902389,1778315438000,-500.0,0.00014198,2]
[421902399,1778315438000,-500.0,0.00014198,2]
[421902378,1778315438000,-500.0,0.00014198,2]
[421902384,1778315438000,-500.0,0.00014198,2]
[421902383,1778315438000,-500.0,0.00014198,2]
[421902387,1778315438000,-500.0,0.00014198,2]
[421902370,1778315438000,-500.0,0.00014198,2]
[421902374,1778315438000,-500.0,0.00014198,2]
[421902372,1778315438000,-500.0,0.00014198,2]
[421902391,1778315438000,-500.0,0.00014198,2]
[421902320,1778315438000,-500.0,0.00014198,2]
[421902323,1778315438000,-266.65275629,0.00014198,2]
[421902336,1778315438000,-500.0,0.00014198,2]
[421902307,1778315438000,-500.0,0.00014198,2]
[421902306,1778315438000,-500.0,0.00014198,2]
[421902309,1778315438000,-500.0,0.00014198,2]
[421902319,1778315438000,-500.0,0.00014198,2]
[421902308,1778315438000,-500.0,0.00014198,2]
[421902312,1778315438000,-500.0,0.00014198,2]
[421902310,1778315438000,-500.0,0.00014198,2]
[421902313,1778315438000,-500.0,0.00014198,2]
[421902338,1778315438000,-500.0,0.00014198,2]
[421902317,1778315438000,-500.0,0.00014198,2]
[421902315,1778315438000,-500.0,0.00014198,2]
[421902314,1778315438000,-500.0,0.00014198,2]
[421902316,1778315438000,-500.0,0.00014198,2]
[421902318,1778315438000,-500.0,0.00014198,2]
[421902321,1778315438000,-500.0,0.00014198,2]
[421902332,1778315438000,-518.2863585,0.00014198,2]
[421902334,1778315438000,-500.0,0.00014198,2]
[421902311,1778315438000,-500.0,0.00014198,2]
[421902972,1778315443000,-349.93816986,0.00014199,2]
[421902970,1778315443000,-115783.91819295,0.00014199,2]
[421903254,1778315445000,-47285.3821545,0.00014199,2]
[421903246,1778315445000,-500.0,0.00014198,2]
[421903250,1778315445000,-500.0,0.00014198,2]
[421903248,1778315445000,-500.0,0.00014198,2]
[421903252,1778315445000,-500.0,0.00014198,2]
[421903290,1778315446000,-506.0,0.00014199,2]
[421903288,1778315446000,-512.83363679,0.00014199,2]
[421904150,1778315547000,3032.0605,0.0003,120]
[421904152,1778315648000,500.0,0.00030136,120]
[421904154,1778316426000,-106.02298505,0.00010372,2]
[421904153,1778316426000,-264.5,0.00010371,2]
[421904160,1778316572000,-151.50701495,0.00010372,2]
[421904161,1778316572000,-250.0,0.0001074,2]
[421904164,1778316572000,-150.9825981,0.00011129,2]
[421904162,1778316572000,-150.0,0.00010907,2]
[421904163,1778316572000,-150.0,0.00011015,2]
[421904180,1778316632000,-427.38073866,0.00012793,2]
[421904183,1778316632000,-618.31401655,0.00012793,2]
[421904178,1778316632000,-692.25,0.00012716,2]
[421904186,1778316632000,-459.76524479,0.00012793,2]
[421904203,1778316632000,-159.7,0.00013342,2]
[421904175,1778316632000,-880.71437134,0.00012549,2]
[421904177,1778316632000,-499.28562866,0.00012549,2]
[421904174,1778316632000,-250.0,0.00012242,2]